fUST/lending_fUST_20240918
["ID","MTS","AMOUNT","RATE_DAILY","PERIOD"]
[338426250,1726630255261,-500.0,0.00019452,2]
[338426251,1726630255270,-500.0,0.00019452,2]
[338426252,1726630255280,-500.0,0.00019452,2]
[338426253,1726630255291,-500.0,0.00019452,2]
[338426254,1726630255300,-212.82255506,0.00019452,2]
[338426255,1726630255310,-1627.6,0.00019452,2]
[338426256,1726630255319,-500.0,0.00019452,2]
[338426257,1726630255329,-500.0,0.00019452,2]
[338426258,1726630255338,-500.0,0.00019452,2]
[338426259,1726630255347,-632.77908939,0.00019452,2]
[338426260,1726630255357,-500.0,0.00019452,2]
[338426261,1726630255367,-2742.95,0.00019452,2]
[338426262,1726630255379,-944.56,0.00019452,2]
[338426263,1726630255388,-1370.87,0.00019452,2]
[338426264,1726630255398,-500.0,0.00019452,2]
[338426265,1726630255408,-500.0,0.00019452,2]
[338426266,1726630255419,-500.0,0.00019452,2]
[338426267,1726630255429,-500.0,0.00019452,2]
[338426268,1726630255440,-661.91,0.00019452,2]
[338426269,1726630255449,-500.0,0.00019452,2]
[338426270,1726630255459,-500.0,0.00019452,2]
[338426271,1726630255469,-502.11732115,0.00019452,2]
[338426272,1726630255479,-500.0,0.00019452,2]
[338426273,1726630255489,-500.0,0.00019452,2]
[338426274,1726630255498,-508.05,0.00019452,2]
[338426275,1726630255508,-500.0,0.00019452,2]
[338426276,1726630255518,-1688.46,0.00019452,2]
[338426277,1726630255528,-500.0,0.00019452,2]
[338426278,1726630255538,-500.0,0.00019452,2]
[338426279,1726630255550,-1043.4,0.00019452,2]
[338426280,1726630255559,-500.0,0.00019452,2]
[338426281,1726630255569,-500.0,0.00019452,2]
[338426282,1726630255580,-1018.52,0.00019452,2]
[338426283,1726630255590,-500.0,0.00019452,2]
[338426284,1726630255601,-500.0,0.00019452,2]
[338426285,1726630255611,-500.0,0.00019452,2]
[338426286,1726630255623,-566.07,0.00019452,2]
[338426287,1726630255635,-500.0,0.00019452,2]
[338426288,1726630255645,-516.74,0.00019452,2]
[338426289,1726630255655,-226.80605328,0.00019452,2]
[338426290,1726630255664,-500.0,0.00019452,2]
[338426291,1726630255673,-1730.07,0.00019452,2]
[338426292,1726630255685,-500.0,0.00019452,2]
[338426293,1726630255694,-501.77,0.00019452,2]
[338426294,1726630255703,-500.0,0.00019452,2]
[338426295,1726630255712,-358.08029643,0.00019452,2]
[338426296,1726630255721,-500.0,0.00019452,2]
[338426297,1726630255731,-500.0,0.00019452,2]
[338426298,1726630255740,-500.0,0.00019452,2]
[338426299,1726630255749,-500.0,0.00019452,2]
[338426300,1726630255758,-582.14499176,0.00019452,2]
[338426301,1726630255767,-500.0,0.00019452,2]
[338426302,1726630255776,-500.0,0.00019452,2]
[338426303,1726630255786,-500.0,0.00019452,2]
[338426304,1726630255798,-500.0,0.00019452,2]
[338426305,1726630255807,-860.81,0.00019452,2]
[338426306,1726630255816,-500.0,0.00019452,2]
[338426307,1726630255825,-500.0,0.00019452,2]
[338426308,1726630255835,-500.0,0.00019452,2]
[338426309,1726630255845,-544.77,0.00019452,2]
[338426310,1726630255855,-151.0,0.00019452,2]
[338426311,1726630255864,-151.0,0.00019452,2]
[338426312,1726630255873,-559.49,0.00019452,2]
[338426313,1726630255882,-572.54,0.00019452,2]
[338426314,1726630255892,-500.0,0.00019452,2]
[338426315,1726630255901,-500.0,0.00019452,2]
[338426316,1726630255911,-500.0,0.00019452,2]
[338426317,1726630255921,-500.0,0.00019452,2]
[338426318,1726630255931,-2287.2,0.00019452,2]
[338426319,1726630255940,-496.18891021,0.00019452,2]
[338426320,1726630255950,-500.0,0.00019452,2]
[338426321,1726630255959,-500.0,0.00019452,2]
[338426322,1726630255968,-500.0,0.00019452,2]
[338426323,1726630255977,-445.39235273,0.00019452,2]
[338426324,1726630255987,-742.33,0.00019452,2]
[338426325,1726630255996,-500.0,0.00019452,2]
[338426326,1726630256006,-536.08,0.00019452,2]
[338426327,1726630256015,-500.0,0.00019452,2]
[338426328,1726630256024,-500.0,0.00019452,2]
[338426329,1726630256035,-500.0,0.00019452,2]
[338426330,1726630256044,-500.0,0.00019452,2]
[338426331,1726630256053,-770.75,0.00019452,2]
[338426332,1726630256062,-718.77,0.00019452,2]
[338426333,1726630256071,-500.0,0.00019452,2]
[338426334,1726630256081,-500.0,0.00019452,2]
[338426335,1726630256090,-581.91535978,0.00019452,2]
[338426336,1726630256099,-500.0,0.00019452,2]
[338426337,1726630256109,-880.12,0.00019452,2]
[338426338,1726630256118,-500.0,0.00019452,2]
[338426339,1726630256127,-571.98,0.00019452,2]
[338426340,1726630256136,-1355.15,0.00019452,2]
[338426341,1726630256147,-151.0,0.00019452,2]
[338426342,1726630256158,-151.0,0.00019452,2]
[338426343,1726630256169,-151.0,0.00019452,2]
[338426344,1726630256179,-500.0,0.00019452,2]
[338426345,1726630256191,-825.65,0.00019452,2]
[338426346,1726630256202,-500.0,0.00019452,2]
[338426347,1726630256212,-500.0,0.00019452,2]
[338426348,1726630256225,-500.0,0.00019452,2]
[338426349,1726630256236,-500.0,0.00019452,2]
[338426350,1726630256248,-500.0,0.00019452,2]
[338426351,1726630256260,-1437.04,0.00019452,2]
[338426352,1726630256270,-533.36,0.00019452,2]
[338426353,1726630256281,-571.99,0.00019452,2]
[338426354,1726630256292,-500.0,0.00019452,2]
[338426355,1726630256303,-500.0,0.00019452,2]
[338426356,1726630256313,-500.0,0.00019452,2]
[338426357,1726630256322,-601.62,0.00019452,2]
[338426358,1726630256334,-500.0,0.00019452,2]
[338426359,1726630256346,-747.16,0.00019452,2]
[338426360,1726630256357,-500.0,0.00019452,2]
[338426361,1726630256366,-1205.17,0.00019452,2]
[338426362,1726630256377,-1213.5,0.00019452,2]
[338426363,1726630256389,-500.0,0.00019452,2]
[338426364,1726630256399,-500.0,0.00019452,2]
[338426365,1726630256410,-674.86,0.00019452,2]
[338426366,1726630256421,-500.0,0.00019452,2]
[338426367,1726630256432,-676.62,0.00019452,2]
[338426368,1726630256443,-500.0,0.00019452,2]
[338426369,1726630256453,-785.29,0.00019452,2]
[338426370,1726630256463,-2333.73,0.00019452,2]
[338426371,1726630256476,-644.04,0.00019452,2]
[338426372,1726630256485,-500.0,0.00019452,2]
[338426373,1726630256496,-528.41126972,0.00019452,2]
[338426374,1726630256507,-500.0,0.00019452,2]
[338426375,1726630256517,-500.0,0.00019452,2]
[338426376,1726630256529,-500.0,0.00019452,2]
[338426377,1726630256538,-500.0,0.00019452,2]
[338426378,1726630256548,-500.0,0.00019452,2]
[338426379,1726630256557,-500.0,0.00019452,2]
[338426380,1726630256567,-500.0,0.00019452,2]
[338426381,1726630256578,-855.32,0.00019452,2]
[338426382,1726630256588,-650.27,0.00019452,2]
[338426383,1726630256598,-500.0,0.00019452,2]
[338426384,1726630256608,-500.0,0.00019452,2]
[338426385,1726630256618,-1058.47,0.00019452,2]
[338426386,1726630256628,-804.71,0.00019452,2]
[338426387,1726630256639,-544.8,0.00019452,2]
[338426388,1726630256650,-194.78151349,0.00019452,2]
[338426389,1726630256661,-500.0,0.00019452,2]
[338426390,1726630256671,-623.3,0.00019452,2]
[338426391,1726630256682,-500.0,0.00019452,2]
[338426392,1726630256691,-500.0,0.00019452,2]
[338426393,1726630256700,-216.6393984,0.00019452,2]
[338426394,1726630256711,-1096.84,0.00019452,2]
[338426395,1726630256722,-500.0,0.00019452,2]
[338426396,1726630256733,-500.0,0.00019452,2]
[338426397,1726630256746,-500.0,0.00019452,2]
[338426398,1726630256759,-979.93,0.00019452,2]
[338426399,1726630256770,-853.42,0.00019452,2]
[338426400,1726630256780,-897.72,0.00019452,2]
[338426401,1726630256791,-500.0,0.00019452,2]
[338426402,1726630256801,-500.0,0.00019452,2]
[338426403,1726630256812,-500.0,0.00019452,2]
[338426404,1726630256824,-1642.52,0.00019452,2]
[338426405,1726630256834,-500.0,0.00019452,2]
[338426406,1726630256845,-500.0,0.00019452,2]
[338426407,1726630256856,-500.0,0.00019452,2]
[338426408,1726630256866,-500.0,0.00019452,2]
[338426409,1726630256875,-500.0,0.00019452,2]
[338426410,1726630256885,-500.0,0.00019452,2]
[338426411,1726630256897,-1763.82,0.00019452,2]
[338426412,1726630256907,-2936.3,0.00019452,2]
[338426413,1726630256918,-500.0,0.00019452,2]
[338426414,1726630256929,-500.0,0.00019452,2]
[338426415,1726630256940,-618.69018909,0.00019452,2]
[338426416,1726630256950,-500.0,0.00019452,2]
[338426417,1726630256961,-500.0,0.00019452,2]
[338426418,1726630256972,-1270.0,0.00019452,2]
[338426419,1726630256983,-500.0,0.00019452,2]
[338426420,1726630256993,-500.0,0.00019452,2]
[338426421,1726630257003,-500.0,0.00019452,2]
[338426422,1726630257014,-1793.86,0.00019452,2]
[338426423,1726630257024,-500.0,0.00019452,2]
[338426424,1726630257035,-500.0,0.00019452,2]
[338426425,1726630257045,-959.49,0.00019452,2]
[338426426,1726630257055,-500.0,0.00019452,2]
[338426427,1726630257066,-500.0,0.00019452,2]
[338426428,1726630257075,-1109.16,0.00019452,2]
[338426429,1726630257085,-1384.73,0.00019452,2]
[338426430,1726630257096,-1284.89,0.00019452,2]
[338426431,1726630257108,-500.0,0.00019452,2]
[338426432,1726630257118,-500.0,0.00019452,2]
[338426433,1726630257129,-763.72,0.00019452,2]
[338426434,1726630257140,-474.45901079,0.00019452,2]
[338426435,1726630257152,-1129.29,0.00019452,2]
[338426436,1726630257163,-557.97,0.00019452,2]
[338426437,1726630257172,-1163.05,0.00019452,2]
[338426438,1726630257184,-652.92,0.00019452,2]
[338426439,1726630257195,-500.0,0.00019452,2]
[338426440,1726630257205,-500.0,0.00019452,2]
[338426441,1726630257215,-500.0,0.00019452,2]
[338426442,1726630257227,-500.0,0.00019452,2]
[338426443,1726630257237,-500.0,0.00019452,2]
[338426444,1726630257248,-237.29,0.00019452,2]
[338426445,1726630257260,-501.27083728,0.00019452,2]
[338426446,1726630257271,-2514.17,0.00019452,2]
[338426447,1726630257283,-1007.27,0.00019452,2]
[338426448,1726630257294,-500.0,0.00019452,2]
[338426449,1726630257304,-798.78,0.00019452,2]
[338426450,1726630257315,-530.16,0.00019452,2]
[338426451,1726630257327,-605.58,0.00019452,2]
[338426452,1726630257339,-500.0,0.00019452,2]
[338426453,1726630257349,-151.0,0.00019452,2]
[338426454,1726630257358,-500.0,0.00019452,2]
[338426455,1726630257367,-2058.79,0.00019452,2]
[338426456,1726630257380,-500.0,0.00019452,2]
[338426457,1726630257389,-1315.31,0.00019452,2]
[338426458,1726630257400,-500.0,0.00019452,2]
[338426459,1726630257411,-539.46,0.00019452,2]
[338426460,1726630257422,-1284.58,0.00019452,2]
[338426461,1726630257595,-500.0,0.00019452,2]
[338426462,1726630257607,-151.0,0.00019452,2]
[338426463,1726630257618,-156.390996,0.00019452,2]
[338426464,1726630257630,-500.0,0.00019452,2]
[338426465,1726630257641,-500.0,0.00019452,2]
[338426466,1726630257651,-500.0,0.00019452,2]
[338426467,1726630257662,-500.0,0.00019452,2]
[338426468,1726630257674,-500.0,0.00019452,2]
[338426469,1726630257687,-500.0,0.00019452,2]
[338426470,1726630257696,-500.0,0.00019452,2]
[338426471,1726630257708,-500.0,0.00019452,2]
[338426472,1726630257719,-500.0,0.00019452,2]
[338426473,1726630257729,-1558.13,0.00019452,2]
[338426474,1726630257740,-947.11,0.00019452,2]
[338426475,1726630257749,-833.83,0.00019452,2]
[338426476,1726630257761,-899.03,0.00019452,2]
[338426477,1726630257773,-1117.76,0.00019452,2]
[338426478,1726630257782,-500.0,0.00019452,2]
[338426479,1726630257791,-626.87,0.00019452,2]
[338426480,1726630257801,-500.0,0.00019452,2]
[338426481,1726630257810,-500.0,0.00019452,2]
[338426482,1726630257820,-323.15941287,0.00019452,2]
[338426483,1726630257829,-500.0,0.00019452,2]
[338426484,1726630257838,-1488.66,0.00019452,2]
[338426485,1726630257848,-500.0,0.00019452,2]
[338426486,1726630257857,-500.0,0.00019452,2]
[338426487,1726630257866,-500.0,0.00019452,2]
[338426488,1726630257875,-500.0,0.00019452,2]
[338426489,1726630257884,-500.0,0.00019452,2]
[338426490,1726630257893,-500.0,0.00019452,2]
[338426491,1726630257903,-500.0,0.00019452,2]
[338426492,1726630257912,-500.0,0.00019452,2]
[338426493,1726630257930,-500.0,0.00019452,2]
[338426494,1726630257939,-500.0,0.00019452,2]
[338426495,1726630257948,-2347.61,0.00019452,2]
[338426496,1726630257958,-500.0,0.00019452,2]
[338426497,1726630257967,-523.09,0.00019452,2]
[338426498,1726630257976,-500.0,0.00019452,2]
[338426499,1726630257987,-567.22363336,0.00019452,2]
[338426500,1726630257997,-539.56,0.00019452,2]
[338426501,1726630258007,-500.0,0.00019452,2]
[338426502,1726630258017,-500.0,0.00019452,2]
[338426503,1726630258027,-689.25,0.00019452,2]
[338426504,1726630258036,-500.0,0.00019452,2]
[338426505,1726630258045,-768.59,0.00019452,2]
[338426506,1726630258054,-1411.41,0.00019452,2]
[338426507,1726630258064,-500.0,0.00019452,2]
[338426508,1726630258073,-500.0,0.00019452,2]
[338426509,1726630258084,-542.19,0.00019452,2]
[338426510,1726630258095,-776.3,0.00019452,2]
[338426511,1726630258107,-1034.03,0.00019452,2]
[338426512,1726630258118,-502.66,0.00019452,2]
[338426513,1726630258131,-561.579837,0.00019452,2]
[338426514,1726630258141,-500.0,0.00019452,2]
[338426515,1726630258151,-500.0,0.00019452,2]
[338426516,1726630258163,-829.86,0.00019452,2]
[338426517,1726630258175,-945.72,0.00019452,2]
[338426518,1726630258188,-587.97485686,0.00019452,2]
[338426519,1726630258199,-500.0,0.00019452,2]
[338426520,1726630258208,-500.0,0.00019452,2]
[338426521,1726630258219,-1281.97,0.00019452,2]
[338426522,1726630258230,-500.0,0.00019452,2]
[338426523,1726630258242,-500.0,0.00019452,2]
[338426524,1726630258254,-1005.8,0.00019452,2]
[338426525,1726630258264,-510.11656811,0.00019452,2]
[338426526,1726630258275,-1500.08,0.00019452,2]
[338426527,1726630258286,-3154.26,0.00019452,2]
[338426528,1726630258298,-500.0,0.00019452,2]
[338426529,1726630258310,-500.0,0.00019452,2]
[338426530,1726630258321,-571.31,0.00019452,2]
[338426531,1726630258331,-633.03,0.00019452,2]
[338426532,1726630258343,-679.69,0.00019452,2]
[338426533,1726630258353,-1831.04,0.00019452,2]
[338426534,1726630258365,-5342.0,0.00019452,2]
[338426535,1726630258375,-500.0,0.00019452,2]
[338426536,1726630258388,-502.02493509,0.00019452,2]
[338426537,1726630258398,-727.12,0.00019452,2]
[338426538,1726630258408,-820.5,0.00019452,2]
[338426539,1726630258419,-500.0,0.00019452,2]
[338426540,1726630258433,-500.0,0.00019452,2]
[338426541,1726630258443,-1299.64,0.00019452,2]
[338426542,1726630258456,-500.0,0.00019452,2]
[338426543,1726630258467,-500.0,0.00019452,2]
[338426544,1726630258478,-1865.73,0.00019452,2]
[338426545,1726630258488,-500.0,0.00019452,2]
[338426546,1726630258499,-500.0,0.00019452,2]
[338426547,1726630258509,-830.58,0.00019452,2]
[338426548,1726630258521,-824.82,0.00019452,2]
[338426549,1726630258531,-525.37,0.00019452,2]
[338426550,1726630258541,-1283.31,0.00019452,2]
[338426551,1726630258552,-819.21,0.00019452,2]
[338426552,1726630258562,-151.332935,0.00019452,2]
[338426553,1726630258572,-500.0,0.00019452,2]
[338426554,1726630258582,-794.58,0.00019452,2]
[338426555,1726630258593,-500.0,0.00019452,2]
[338426556,1726630258603,-935.99,0.00019452,2]
[338426557,1726630258613,-500.0,0.00019452,2]
[338426558,1726630258623,-2098.19,0.00019452,2]
[338426559,1726630258633,-521.92444219,0.00019452,2]
[338426560,1726630258643,-1033.3,0.00019452,2]
[338426561,1726630258654,-500.0,0.00019452,2]
[338426562,1726630258664,-500.0,0.00019452,2]
[338426563,1726630258675,-648.53680776,0.00019452,2]
[338426564,1726630258687,-500.0,0.00019452,2]
[338426565,1726630258697,-500.0,0.00019452,2]
[338426566,1726630258706,-500.0,0.00019452,2]
[338426567,1726630258716,-3452.64,0.00019452,2]
[338426568,1726630258725,-500.0,0.00019452,2]
[338426569,1726630258735,-2125.11,0.00019452,2]
[338426570,1726630258744,-1212.29,0.00019452,2]
[338426571,1726630258753,-547.67,0.00019452,2]
[338426572,1726630258763,-500.0,0.00019452,2]
[338426573,1726630258772,-1208.82,0.00019452,2]
[338426574,1726630258782,-500.0,0.00019452,2]
[338426575,1726630258791,-151.0,0.00019452,2]
[338426576,1726630258800,-292.651344,0.00019452,2]
[338426577,1726630258809,-227.55,0.00019452,2]
[338426578,1726630258819,-1136.09,0.00019452,2]
[338426579,1726630258828,-500.0,0.00019452,2]
[338426580,1726630258837,-1052.11,0.00019452,2]
[338426581,1726630258847,-500.0,0.00019452,2]
[338426582,1726630258856,-500.0,0.00019452,2]
[338426583,1726630258867,-500.0,0.00019452,2]
[338426584,1726630258877,-644.81898305,0.00019452,2]
[338426585,1726630258888,-500.0,0.00019452,2]
[338426586,1726630258899,-500.0,0.00019452,2]
[338426587,1726630258909,-250.0,0.00019452,2]
[338426588,1726630258920,-500.0,0.00019452,2]
[338426589,1726630258932,-500.0,0.00019452,2]
[338426590,1726630258944,-599.04,0.00019452,2]
[338426591,1726630258956,-1377.76,0.00019452,2]
[338426592,1726630258968,-500.0,0.00019452,2]
[338426593,1726630258979,-500.0,0.00019452,2]
[338426594,1726630258989,-500.0,0.00019452,2]
[338426595,1726630259000,-500.0,0.00019452,2]
[338426596,1726630259012,-500.0,0.00019452,2]
[338426597,1726630259022,-641.86,0.00019452,2]
[338426598,1726630259033,-2449.99,0.00019452,2]
[338426599,1726630259044,-500.0,0.00019452,2]
[338426600,1726630259055,-500.0,0.00019452,2]
[338426601,1726630259067,-1622.38,0.00019452,2]
[338426602,1726630259077,-500.0,0.00019452,2]
[338426603,1726630259087,-500.0,0.00019452,2]
[338426604,1726630259098,-500.0,0.00019452,2]
[338426605,1726630259108,-500.0,0.00019452,2]
[338426606,1726630259118,-500.0,0.00019452,2]
[338426607,1726630259128,-502.87,0.00019452,2]
[338426608,1726630259140,-500.0,0.00019452,2]
[338426609,1726630259153,-1212.06,0.00019452,2]
[338426610,1726630259163,-1341.55,0.00019452,2]
[338426611,1726630259176,-969.3,0.00019452,2]
[338426612,1726630259187,-500.0,0.00019452,2]
[338426613,1726630259198,-557.66,0.00019452,2]
[338426614,1726630259208,-500.0,0.00019452,2]
[338426615,1726630259218,-500.0,0.00019452,2]
[338426616,1726630259229,-500.0,0.00019452,2]
[338426617,1726630259240,-597.34,0.00019452,2]
[338426618,1726630259251,-500.0,0.00019452,2]
[338426619,1726630259260,-1416.91,0.00019452,2]
[338426620,1726630259271,-342.58639172,0.00019452,2]
[338426621,1726630259282,-1504.99,0.00019452,2]
[338426622,1726630259294,-500.0,0.00019452,2]
[338426623,1726630259306,-500.0,0.00019452,2]
[338426624,1726630259315,-500.0,0.00019452,2]
[338426625,1726630259325,-506.06267921,0.00019452,2]
[338426626,1726630259335,-500.0,0.00019452,2]
[338426627,1726630259345,-294.91661263,0.00019452,2]
[338426628,1726630259354,-710.95,0.00019452,2]
[338426629,1726630259364,-500.0,0.00019452,2]
[338426630,1726630259374,-500.0,0.00019452,2]
[338426631,1726630259384,-500.0,0.00019452,2]
[338426632,1726630259393,-2427.23,0.00019452,2]
[338426633,1726630259403,-691.15,0.00019452,2]
[338426634,1726630259413,-836.6,0.00019452,2]
[338426635,1726630259422,-668.7,0.00019452,2]
[338426636,1726630259433,-500.0,0.00019452,2]
[338426637,1726630259443,-500.0,0.00019452,2]
[338426638,1726630259453,-523.67661019,0.00019452,2]
[338426639,1726630259462,-1274.97,0.00019452,2]
[338426640,1726630259472,-1355.88,0.00019452,2]
[338426641,1726630259483,-624.02,0.00019452,2]
[338426642,1726630259493,-1331.78,0.00019452,2]
[338426643,1726630259503,-500.0,0.00019452,2]
[338426644,1726630259512,-539.08,0.00019452,2]
[338426645,1726630259522,-151.0,0.00019452,2]
[338426646,1726630259532,-821.49,0.00019452,2]
[338426647,1726630259542,-151.0,0.00019452,2]
[338426648,1726630259552,-1028.15,0.00019452,2]
[338426649,1726630259562,-2285.56,0.00019452,2]
[338426650,1726630259571,-500.0,0.00019452,2]
[338426651,1726630259581,-500.0,0.00019452,2]
[338426652,1726630259591,-500.0,0.00019452,2]
[338426653,1726630259600,-559.69,0.00019452,2]
[338426654,1726630259611,-500.0,0.00019452,2]
[338426655,1726630259621,-500.0,0.00019452,2]
[338426656,1726630259630,-500.0,0.00019452,2]
[338426657,1726630259639,-1374.18,0.00019452,2]
[338426658,1726630259649,-151.0,0.00019452,2]
[338426659,1726630259658,-151.0,0.00019452,2]
[338426660,1726630259667,-1251.57,0.00019452,2]
[338426661,1726630259677,-500.0,0.00019452,2]
[338426662,1726630259690,-600.45797364,0.00019452,2]
[338426663,1726630259700,-500.0,0.00019452,2]
[338426664,1726630259710,-500.0,0.00019452,2]
[338426665,1726630259719,-500.0,0.00019452,2]
[338426666,1726630259728,-500.0,0.00019452,2]
[338426667,1726630259741,-1731.29,0.00019452,2]
[338426668,1726630259751,-500.0,0.00019452,2]
[338426669,1726630259760,-509.39020912,0.00019452,2]
[338426670,1726630259770,-562.44,0.00019452,2]
[338426671,1726630259782,-634.8,0.00019452,2]
[338426672,1726630259792,-500.0,0.00019452,2]
[338426673,1726630259803,-500.0,0.00019452,2]
[338426674,1726630259816,-500.0,0.00019452,2]
[338426675,1726630259827,-1098.12,0.00019452,2]
[338426676,1726630259837,-764.72,0.00019452,2]
[338426677,1726630259847,-500.0,0.00019452,2]
[338426678,1726630259856,-975.31,0.00019452,2]
[338426679,1726630259867,-527.35027438,0.00019452,2]
[338426680,1726630259877,-1581.9,0.00019452,2]
[338426681,1726630259887,-552.07,0.00019452,2]
[338426682,1726630259899,-1164.16,0.00019452,2]
[338426683,1726630259912,-500.0,0.00019452,2]
[338426684,1726630259922,-500.0,0.00019452,2]
[338426685,1726630259933,-500.0,0.00019452,2]
[338426686,1726630259944,-500.0,0.00019452,2]
[338426687,1726630259954,-500.0,0.00019452,2]
[338426688,1726630259964,-845.86,0.00019452,2]
[338426689,1726630259975,-500.0,0.00019452,2]
[338426690,1726630259987,-500.0,0.00019452,2]
[338426691,1726630259998,-500.0,0.00019452,2]
[338426692,1726630260008,-500.0,0.00019452,2]
[338426693,1726630260018,-1236.78,0.00019452,2]
[338426694,1726630260027,-1217.92,0.00019452,2]
[338426695,1726630260037,-151.0,0.00019452,2]
[338426696,1726630260047,-151.0,0.00019452,2]
[338426697,1726630260057,-453.8257959,0.00019452,2]
[338426698,1726630260066,-151.0,0.00019452,2]
[338426699,1726630260076,-151.0,0.00019452,2]
[338426700,1726630260087,-671.53,0.00019452,2]
[338426701,1726630260098,-500.0,0.00019452,2]
[338426702,1726630260109,-500.0,0.00019452,2]
[338426703,1726630260120,-634.01,0.00019452,2]
[338426704,1726630260131,-2711.97,0.00019452,2]
[338426705,1726630260194,-735.42,0.00019452,2]
[338426706,1726630260205,-500.0,0.00019452,2]
[338426707,1726630260215,-500.0,0.00019452,2]
[338426708,1726630260227,-500.0,0.00019452,2]
[338426709,1726630260239,-500.0,0.00019452,2]
[338426710,1726630260248,-500.0,0.00019452,2]
[338426711,1726630260259,-500.0,0.00019452,2]
[338426712,1726630260268,-511.98,0.00019452,2]
[338426713,1726630260278,-500.0,0.00019452,2]
[338426714,1726630260287,-661.06,0.00019452,2]
[338426715,1726630260297,-500.0,0.00019452,2]
[338426716,1726630260307,-500.0,0.00019452,2]
[338426717,1726630260317,-618.11,0.00019452,2]
[338426718,1726630260327,-500.0,0.00019452,2]
[338426719,1726630260336,-2182.03,0.00019452,2]
[338426720,1726630260347,-500.0,0.00019452,2]
[338426721,1726630260356,-1207.78,0.00019452,2]
[338426722,1726630260366,-500.0,0.00019452,2]
[338426723,1726630260375,-500.0,0.00019452,2]
[338426724,1726630260387,-500.0,0.00019452,2]
[338426725,1726630260397,-500.0,0.00019452,2]
[338426726,1726630260407,-329.90250438,0.00019452,2]
[338426727,1726630260416,-500.0,0.00019452,2]
[338426728,1726630260426,-1137.27,0.00019452,2]
[338426729,1726630260436,-857.84,0.00019452,2]
[338426730,1726630260446,-500.0,0.00019452,2]
[338426731,1726630260456,-1741.34,0.00019452,2]
[338426732,1726630260466,-808.92,0.00019452,2]
[338426733,1726630260475,-612.28074698,0.00019452,2]
[338426734,1726630260485,-762.07,0.00019452,2]
[338426735,1726630260495,-500.0,0.00019452,2]
[338426736,1726630260505,-180.70082576,0.00019452,2]
[338426737,1726630260516,-809.37,0.00019452,2]
[338426738,1726630260526,-500.0,0.00019452,2]
[338426739,1726630260536,-500.0,0.00019452,2]
[338426740,1726630260546,-681.42,0.00019452,2]
[338426741,1726630260555,-500.0,0.00019452,2]
[338426742,1726630260565,-2133.09,0.00019452,2]
[338426743,1726630260574,-151.0,0.00019452,2]
[338426744,1726630260585,-154.795383,0.00019452,2]
[338426745,1726630260594,-2403.05,0.00019452,2]
[338426746,1726630260603,-812.63,0.00019452,2]
[338426747,1726630260613,-500.0,0.00019452,2]
[338426748,1726630260623,-1096.04,0.00019452,2]
[338426749,1726630260634,-1357.9,0.00019452,2]